[Event "FIDE WYCC Open U14 2023"]
[Site "Montesilvano"]
[Date "2023.11.13"]
[Round "1.30"]
[White "Haug, Havard"]
[Black "Chanturia, Giorgi"]
[Result "1-0"]
[ECO "B22"]
[WhiteElo "2223"]
[BlackElo "1668"]
[Annotator "ChessBase"]
[PlyCount "61"]
[EventDate "2023.11.13"]
[EventType "swiss"]
[EventCountry "ITA"]
[SourceTitle "playchess.com"]
[Source "ChessBase"]
[SourceQuality "1"]
[TimeControl "40/5400+30:1800+30"]

1. e4 {[%emt 0:00:08]} c5 {[%emt 0:00:12]} 2. c3 {[%emt 0:00:08]} g6 {[%emt 0:00:11]} 3. d4 {[%emt 0:00:07]} cxd4 {[%emt 0:00:01]} 4. cxd4 {[%emt 0:00:08]} d5 {[%emt 0:00:03]} 5. e5 {[%emt 0:00:24]} Nc6 {[%emt 0:00:05]} 6. h3 {[%emt 0:01:50]} Bg7 {[%emt 0:00:09]} 7. Nf3 {[%emt 0:00:41]} Nh6 {[%emt 0:00:51]} 8. Bb5 {[%emt 0:01:51]} O-O {[%emt 0:00:09]} 9. O-O {[%emt 0:00:15]} f6 {[%emt 0:00:33]} 10. Nc3 {[%emt 0:01:45]} fxe5 {[%emt 0:03:42]} 11. Bxc6 {[%emt 0:02:52]} bxc6 {[%emt 0:00:05]} 12. Bxh6 {[%emt 0:00:10]} Bxh6 {[%emt 0:00:07]} 13. Nxe5 {[%emt 0:00:05]} Qd6 {[%emt 0:03:56]} 14. Na4 {[%emt 0:06:03]} Bf5 15. Nc5 {[%emt 0:10:15]} Rab8 {[%emt 0:46:39]} 16. Qe2 {[%emt 0:03:26]} Rb4 {[%emt 0:01:57]} 17. Rad1 {[%emt 0:00:23]} Rfb8 {[%emt 0:07:59]} 18. b3 {[%emt 0:00:48]} Rxd4 {[%emt 0:01:05]} 19. Rxd4 {[%emt 0:00:14]} Qxc5 {[%emt 0:00:04]} 20. Rdd1 {[%emt 0:01:07]} Rb4 {[%emt 0:07:58]} 21. Nd3 {[%emt 0:00:37]} Qb5 {[%emt 0:02:13]} 22. Qxe7 {[%emt 0:03:31]} Bf8 {[%emt 0:10:30]} 23. Qe3 {[%emt 0:00:34]} Re4 {[%emt 0:00:04]} 24. Qxa7 {[%emt 0:02:24]} Re7 {[%emt 0:05:21]} 25. Qd4 {[%emt 0:00:29]} Bg7 {[%emt 0:00:55]} 26. Qb4 {[%emt 0:00:39]} Qxb4 {[%emt 0:05:58]} 27. Nxb4 {[%emt 0:00:03]} Bd7 {[%emt 0:01:03]} 28. Rfe1 {[%emt 0:00:15]} Rf7 {[%emt 0:00:30]} 29. Rc1 {[%emt 0:00:19]} Bd4 {[%emt 0:00:32]} 30. Re2 {[%emt 0:00:10]} Rf6 {[%emt 0:00:20]} 31. Rec2 1-0

[Event "FIDE WYCC Open U14 2023"]
[Site "Montesilvano"]
[Date "2023.11.13"]
[Round "1.31"]
[White "Kjartansson, Matthias Bjorgvin"]
[Black "Ermitsch, Magnus"]
[Result "0-1"]
[ECO "E32"]
[WhiteElo "1651"]
[BlackElo "2206"]
[Annotator "ChessBase"]
[PlyCount "68"]
[EventDate "2023.11.13"]
[EventType "swiss"]
[EventCountry "ITA"]
[SourceTitle "playchess.com"]
[Source "ChessBase"]
[SourceQuality "1"]
[TimeControl "40/5400+30:1800+30"]

1. d4 {[%emt 0:00:02]} Nf6 {[%emt 0:00:07]} 2. c4 {[%emt 0:00:06]} e6 {[%emt 0:00:05]} 3. Nc3 {[%emt 0:00:07]} Bb4 {[%emt 0:00:04]} 4. Qc2 {[%emt 0:00:09]} O-O {[%emt 0:00:06]} 5. Nf3 {[%emt 0:00:33]} d5 {[%emt 0:00:30]} 6. Bg5 {[%emt 0:00:45]} c5 {[%emt 0:00:25]} 7. cxd5 {[%emt 0:03:20]} cxd4 {[%emt 0:07:58]} 8. Nxd4 {[%emt 0:00:11]} exd5 {[%emt 0:01:01]} 9. e3 {[%emt 0:03:03]} h6 {[%emt 0:00:29]} 10. Bh4 {[%emt 0:04:11]} Nc6 {[%emt 0:01:11]} 11. Nxc6 {[%emt 0:07:57]} bxc6 {[%emt 0:01:25]} 12. Be2 {[%emt 0:00:12]} Be6 {[%emt 0:20:18]} 13. O-O {[%emt 0:00:51]} Rc8 {[%emt 0:00:10]} 14. Rfd1 {[%emt 0:02:50]} Qe7 {[%emt 0:01:33]} 15. Ba6 {[%emt 0:05:56]} Rc7 {[%emt 0:02:32]} 16. Ne2 {[%emt 0:00:42]} Bd6 {[%emt 0:02:52]} 17. Bg3 {[%emt 0:06:38]} Bxg3 {[%emt 0:02:43]} 18. Nxg3 {[%emt 0:00:09]} c5 {[%emt 0:01:02]} 19. Be2 {[%emt 0:01:55]} Rd8 {[%emt 0:02:27]} 20. Rac1 {[%emt 0:01:07]} g6 {[%emt 0:01:20]} 21. b3 {[%emt 0:07:59]} h5 {[%emt 0:02:26]} 22. h3 {[%emt 0:05:18]} h4 {[%emt 0:02:53]} 23. Nf1 {[%emt 0:00:08]} Bf5 {[%emt 0:02:24]} 24. Bd3 {[%emt 0:00:41]} Be6 {[%emt 0:10:12]} 25. Nd2 {[%emt 0:03:47]} c4 {[%emt 0:01:56]} 26. Be2 {[%emt 0:11:50]} Bf5 {[%emt 0:02:15]} 27. Qb2 {[%emt 0:01:28]} c3 {[%emt 0:00:49]} 28. Rxc3 {[%emt 0:01:18]} Rxc3 {[%emt 0:00:14]} 29. Qxc3 {[%emt 0:00:07]} d4 {[%emt 0:00:04]} 30. Qc6 {[%emt 0:03:00]} dxe3 {[%emt 0:00:16]} 31. Nf3 {[%emt 0:00:13]} exf2+ {[%emt 0:02:16]} 32. Kxf2 {[%emt 0:00:29]} Rc8 {[%emt 0:00:30]} 33. Qb5 {[%emt 0:01:39]} Ne4+ {[%emt 0:02:13]} 34. Kg1 {[%emt 0:01:23]} Nc3 {[%emt 0:00:10]} 0-1

[Event "FIDE WYCC Open U14 2023"]
[Site "Montesilvano"]
[Date "2023.11.13"]
[Round "1.32"]
[White "Dhruva Thota"]
[Black "Riera Fregoso, Ferran"]
[Result "1-0"]
[ECO "C95"]
[WhiteElo "2192"]
[BlackElo "1647"]
[Annotator "ChessBase"]
[PlyCount "53"]
[EventDate "2023.11.13"]
[EventType "swiss"]
[EventCountry "ITA"]
[SourceTitle "playchess.com"]
[Source "ChessBase"]
[SourceQuality "1"]
[TimeControl "40/5400+30:1800+30"]

1. e4 {[%emt 0:00:03]} e5 {[%emt 0:00:24]} 2. Nf3 {[%emt 0:00:19]} Nc6 {[%emt 0:00:15]} 3. Bb5 {[%emt 0:00:08]} a6 {[%emt 0:00:08]} 4. Ba4 {[%emt 0:00:04]} Be7 {[%emt 0:00:07]} 5. O-O {[%emt 0:00:50]} Nf6 {[%emt 0:00:37]} 6. Re1 {[%emt 0:00:25]} b5 {[%emt 0:00:07]} 7. Bb3 {[%emt 0:00:04]} d6 {[%emt 0:00:06]} 8. c3 {[%emt 0:00:06]} O-O {[%emt 0:00:16]} 9. h3 {[%emt 0:00:47]} Nb8 {[%emt 0:02:11]} 10. d4 {[%emt 0:00:32]} Nbd7 {[%emt 0:00:06]} 11. Nbd2 {[%emt 0:00:09]} c5 {[%emt 0:02:08]} 12. Nf1 {[%emt 0:05:26]} Re8 {[%emt 0:03:21]} 13. Ng3 {[%emt 0:01:31]} g6 {[%emt 0:05:52]} 14. Bh6 {[%emt 0:03:06]} Bf8 {[%emt 0:02:44]} 15. Bxf8 {[%emt 0:01:13]} Kxf8 {[%emt 0:02:14]} 16. Qd2 {[%emt 0:03:39]} c4 {[%emt 0:07:46]} 17. Bc2 {[%emt 0:01:59]} Ng8 {[%emt 0:23:08]} 18. Rad1 {[%emt 0:04:25]} Qe7 {[%emt 0:04:54]} 19. b3 {[%emt 0:02:22]} Nb6 {[%emt 0:09:33]} 20. Nh2 {[%emt 0:15:11]} Be6 {[%emt 0:12:43]} 21. f4 {[%emt 0:01:17]} f6 {[%emt 0:02:08]} 22. fxe5 {[%emt 0:02:42]} fxe5 {[%emt 0:01:01]} 23. dxe5 {[%emt 0:00:12]} dxe5 {[%emt 0:00:37]} 24. Qf2+ {[%emt 0:00:03]} Kg7 {[%emt 0:02:37]} 25. Qxb6 {[%emt 0:00:53]} Qh4 {[%emt 0:00:23]} 26. Qf2 {[%emt 0:01:04]} Rf8 {[%emt 0:00:38]} 27. Nf5+ {[%emt 0:00:07]} 1-0

[Event "FIDE WYCC Open U14 2023"]
[Site "Montesilvano"]
[Date "2023.11.13"]
[Round "1.33"]
[White "Sergooris, Danail Jurgen"]
[Black "Katsanis, Vasileios Dim"]
[Result "0-1"]
[ECO "B12"]
[WhiteElo "1645"]
[BlackElo "2173"]
[Annotator "ChessBase"]
[PlyCount "102"]
[EventDate "2023.11.13"]
[EventType "swiss"]
[EventCountry "ITA"]
[SourceTitle "playchess.com"]
[Source "ChessBase"]
[SourceQuality "1"]
[TimeControl "40/5400+30:1800+30"]

1. e4 {[%emt 0:00:03]} c6 {[%emt 0:00:03]} 2. d4 {[%emt 0:00:06]} d5 {[%emt 0:00:04]} 3. e5 {[%emt 0:00:05]} Bf5 {[%emt 0:00:03]} 4. h4 {[%emt 0:00:06]} h5 {[%emt 0:00:04]} 5. Bd3 {[%emt 0:00:07]} Bxd3 {[%emt 0:00:05]} 6. Qxd3 {[%emt 0:00:06]} Qa5+ {[%emt 0:00:07]} 7. Nd2 {[%emt 0:00:10]} e6 {[%emt 0:00:32]} 8. Ngf3 {[%emt 0:00:38]} Qa6 {[%emt 0:01:01]} 9. c4 {[%emt 0:00:27]} c5 {[%emt 0:04:30]} 10. dxc5 {[%emt 0:06:33]} Bxc5 {[%emt 0:01:30]} 11. b3 {[%emt 0:00:37]} Nc6 {[%emt 0:01:18]} 12. O-O {[%emt 0:09:46]} Nge7 {[%emt 0:16:26]} 13. Bb2 {[%emt 0:06:25]} Nf5 {[%emt 0:01:55]} 14. a3 {[%emt 0:08:31]} O-O {[%emt 0:07:29]} 15. b4 {[%emt 0:09:50]} dxc4 {[%emt 0:00:20]} 16. Qxc4 {[%emt 0:00:33]} Qxc4 {[%emt 0:00:32]} 17. Nxc4 {[%emt 0:00:02]} Bb6 {[%emt 0:00:59]} 18. Rfd1 {[%emt 0:03:35]} Rfd8 {[%emt 0:02:42]} 19. Rac1 {[%emt 0:21:13]} Bc7 {[%emt 0:06:11]} 20. g3 {[%emt 0:02:29]} Rac8 {[%emt 0:02:59]} 21. Kg2 {[%emt 0:03:23]} Rxd1 {[%emt 0:05:07]} 22. Rxd1 {[%emt 0:01:24]} b5 {[%emt 0:00:04]} 23. Ncd2 {[%emt 0:02:15]} Bb6 {[%emt 0:20:26]} 24. Ne4 {[%emt 0:04:37]} Kf8 {[%emt 0:03:26]} 25. Neg5 {[%emt 0:12:41]} Nce7 {[%emt 0:00:59]} 26. Rd2 {[%emt 0:02:49]} Nd5 {[%emt 0:00:16]} 27. Ne4 {[%emt 0:01:35]} Rc4 {[%emt 0:01:33]} 28. Nd6 {[%emt 0:02:07]} Nxd6 {[%emt 0:00:11]} 29. exd6 {[%emt 0:00:01]} Rc6 {[%emt 0:01:11]} 30. Nd4 {[%emt 0:01:06]} Rxd6 {[%emt 0:00:27]} 31. Rc2 {[%emt 0:01:35]} a6 {[%emt 0:01:45]} 32. Nc6 {[%emt 0:00:46]} f6 {[%emt 0:00:25]} 33. Nd4 {[%emt 0:00:45]} Kf7 {[%emt 0:01:15]} 34. Nb3 {[%emt 0:00:16]} Ne7 {[%emt 0:00:34]} 35. Rd2 {[%emt 0:00:22]} Rxd2 {[%emt 0:00:05]} 36. Nxd2 {[%emt 0:00:01]} e5 {[%emt 0:00:29]} 37. Kf3 {[%emt 0:00:21]} Ke6 {[%emt 0:00:04]} 38. Ke2 {[%emt 0:00:36]} Kd5 {[%emt 0:00:03]} 39. f3 {[%emt 0:00:09]} Nf5 {[%emt 0:00:09]} 40. Ne4 {[%emt 0:00:00]} Nd6 {[%emt 0:00:00]} 41. Nxd6 {[%emt 0:01:29]} Kxd6 {[%emt 0:02:28]} 42. g4 {[%emt 0:00:42]} g6 {[%emt 0:00:03]} 43. gxh5 {[%emt 0:01:02]} gxh5 {[%emt 0:00:06]} 44. f4 {[%emt 0:00:49]} Kd5 {[%emt 0:00:25]} 45. fxe5 {[%emt 0:00:16]} fxe5 {[%emt 0:00:09]} 46. Bc1 {[%emt 0:00:33]} Bd8 {[%emt 0:00:04]} 47. Kd3 {[%emt 0:01:36]} Bxh4 {[%emt 0:00:11]} 48. Be3 {[%emt 0:00:08]} e4+ {[%emt 0:00:05]} 49. Kc3 {[%emt 0:00:10]} Be1+ {[%emt 0:00:08]} 50. Kb3 {[%emt 0:00:08]} h4 {[%emt 0:00:07]} 51. Bg1 {[%emt 0:00:03]} Bg3 {[%emt 0:00:06]} 0-1

[Event "FIDE WYCC Open U14 2023"]
[Site "Montesilvano"]
[Date "2023.11.13"]
[Round "1.34"]
[White "Sodbilegt, Naranbold"]
[Black "Mihaila, Radu Stefan"]
[Result "1-0"]
[ECO "B24"]
[WhiteElo "2151"]
[BlackElo "1640"]
[Annotator "ChessBase"]
[PlyCount "81"]
[EventDate "2023.11.13"]
[EventType "swiss"]
[EventCountry "ITA"]
[SourceTitle "playchess.com"]
[Source "ChessBase"]
[SourceQuality "1"]
[TimeControl "40/5400+30:1800+30"]

1. e4 {[%emt 0:00:05]} c5 {[%emt 0:00:04]} 2. Nc3 {[%emt 0:00:10]} Nc6 {[%emt 0:00:12]} 3. Bb5 {[%emt 0:00:10]} g6 {[%emt 0:00:12]} 4. Bxc6 {[%emt 0:00:09]} dxc6 {[%emt 0:00:15]} 5. f4 {[%emt 0:00:54]} Bg7 {[%emt 0:00:14]} 6. Nf3 {[%emt 0:00:08]} Nf6 {[%emt 0:01:21]} 7. d3 {[%emt 0:02:12]} e6 {[%emt 0:03:17]} 8. O-O {[%emt 0:02:38]} O-O {[%emt 0:00:25]} 9. Be3 {[%emt 0:00:35]} Qe7 {[%emt 0:04:20]} 10. h3 {[%emt 0:00:20]} Rd8 {[%emt 0:01:59]} 11. Qe1 {[%emt 0:00:16]} b6 {[%emt 0:02:50]} 12. Qh4 {[%emt 0:06:06]} Ba6 {[%emt 0:04:55]} 13. f5 {[%emt 0:02:40]} exf5 {[%emt 0:05:45]} 14. e5 {[%emt 0:05:32]} Nd5 {[%emt 0:04:59]} 15. Bg5 {[%emt 0:00:14]} Qe8 {[%emt 0:00:54]} 16. Bxd8 {[%emt 0:00:25]} Rxd8 {[%emt 0:00:07]} 17. Nxd5 {[%emt 0:02:55]} cxd5 {[%emt 0:00:17]} 18. Rae1 {[%emt 0:01:16]} d4 {[%emt 0:01:39]} 19. e6 {[%emt 0:18:03]} f6 {[%emt 0:01:04]} 20. e7 {[%emt 0:01:30]} Rd7 {[%emt 0:01:54]} 21. Qf4 {[%emt 0:00:35]} Bb7 {[%emt 0:03:09]} 22. c3 {[%emt 0:11:19]} dxc3 {[%emt 0:02:13]} 23. bxc3 {[%emt 0:12:15]} Bxf3 {[%emt 0:10:13]} 24. Qxf3 {[%emt 0:04:47]} Rxe7 {[%emt 0:00:30]} 25. Kf2 {[%emt 0:04:21]} Bh6 {[%emt 0:02:30]} 26. Rxe7 {[%emt 0:05:41]} Qxe7 {[%emt 0:00:06]} 27. Re1 {[%emt 0:00:35]} Qd7 {[%emt 0:02:13]} 28. Qa8+ {[%emt 0:01:12]} Kf7 {[%emt 0:00:28]} 29. Re2 {[%emt 0:01:30]} Bf8 {[%emt 0:01:30]} 30. Qf3 {[%emt 0:01:27]} Bh6 {[%emt 0:03:14]} 31. c4 {[%emt 0:02:16]} f4 {[%emt 0:03:28]} 32. Qd5+ {[%emt 0:01:12]} Qxd5 {[%emt 0:00:08]} 33. cxd5 {[%emt 0:00:01]} Bf8 {[%emt 0:00:20]} 34. Re6 {[%emt 0:00:01]} g5 {[%emt 0:03:04]} 35. Rc6 {[%emt 0:00:45]} f5 {[%emt 0:02:09]} 36. Rc7+ {[%emt 0:00:45]} Kf6 {[%emt 0:00:08]} 37. Rxa7 {[%emt 0:00:59]} Ke5 {[%emt 0:00:41]} 38. Rxh7 {[%emt 0:00:06]} Kxd5 {[%emt 0:00:17]} 39. Rf7 {[%emt 0:00:08]} Bh6 {[%emt 0:01:20]} 40. Rf6 {[%emt 0:00:00]} Bg7 {[%emt 0:00:00]} 41. Rxf5+ {[%emt 0:01:11]} 1-0

[Event "FIDE WYCC Open U14 2023"]
[Site "Montesilvano"]
[Date "2023.11.13"]
[Round "1.35"]
[White "Hasanli, Ziya"]
[Black "Myagmarsuren, Evsuld"]
[Result "0-1"]
[ECO "D45"]
[WhiteElo "1636"]
[BlackElo "2150"]
[Annotator "ChessBase"]
[PlyCount "60"]
[EventDate "2023.11.13"]
[EventType "swiss"]
[EventCountry "ITA"]
[SourceTitle "playchess.com"]
[Source "ChessBase"]
[SourceQuality "1"]
[TimeControl "40/5400+30:1800+30"]

1. d4 {[%emt 0:00:04]} d5 {[%emt 0:00:07]} 2. c4 {[%emt 0:00:05]} c6 {[%emt 0:00:04]} 3. Nf3 {[%emt 0:00:10]} Nf6 {[%emt 0:00:03]} 4. Nc3 {[%emt 0:00:13]} e6 {[%emt 0:00:04]} 5. e3 {[%emt 0:00:19]} Nbd7 {[%emt 0:00:05]} 6. cxd5 {[%emt 0:00:59]} exd5 {[%emt 0:00:21]} 7. Bd3 {[%emt 0:00:09]} Bd6 {[%emt 0:00:07]} 8. O-O {[%emt 0:00:19]} O-O {[%emt 0:00:03]} 9. Qc2 {[%emt 0:00:34]} Re8 {[%emt 0:00:37]} 10. e4 {[%emt 0:02:37]} dxe4 {[%emt 0:00:24]} 11. Nxe4 {[%emt 0:00:07]} Nxe4 {[%emt 0:00:15]} 12. Bxe4 {[%emt 0:00:07]} Nf6 {[%emt 0:00:04]} 13. Bg5 {[%emt 0:05:28]} h6 {[%emt 0:00:39]} 14. Bxf6 {[%emt 0:02:10]} Qxf6 {[%emt 0:00:09]} 15. Rfe1 {[%emt 0:03:14]} Bg4 {[%emt 0:00:18]} 16. Qb3 {[%emt 0:04:44]} Qf4 {[%emt 0:04:41]} 17. g3 {[%emt 0:10:24]} Qf6 {[%emt 0:00:06]} 18. Nh4 {[%emt 0:07:21]} Qxd4 {[%emt 0:12:16]} 19. Bf5 {[%emt 0:23:29]} Bh5 {[%emt 0:15:50]} 20. Ng2 {[%emt 0:09:25]} Bc5 {[%emt 0:02:38]} 21. Ne3 {[%emt 0:00:17]} Qf6 {[%emt 0:00:24]} 22. g4 {[%emt 0:17:44]} Bg6 {[%emt 0:04:22]} 23. Bxg6 {[%emt 0:01:39]} Qxg6 {[%emt 0:00:07]} 24. h3 {[%emt 0:06:14]} h5 {[%emt 0:00:58]} 25. Qc2 {[%emt 0:02:15]} Rxe3 {[%emt 0:01:21]} 26. Qxc5 {[%emt 0:00:22]} Rxh3 {[%emt 0:00:33]} 27. g5 {[%emt 0:00:41]} Rh4 {[%emt 0:00:51]} 28. f3 {[%emt 0:01:04]} Rf4 {[%emt 0:00:19]} 29. Kf2 {[%emt 0:01:11]} Rf5 {[%emt 0:00:24]} 30. Qe3 {[%emt 0:01:30]} Rxg5 {[%emt 0:00:25]} 0-1

[Event "FIDE WYCC Open U14 2023"]
[Site "Montesilvano"]
[Date "2023.11.14"]
[Round "2.1"]
[White "Villa Tornero, Alex"]
[Black "Ji, Jiahao Eric"]
[Result "0-1"]
[ECO "B90"]
[WhiteElo "2383"]
[BlackElo "2045"]
[Annotator "ChessBase"]
[PlyCount "110"]
[EventDate "2023.11.13"]
[EventType "swiss"]
[EventCountry "ITA"]
[SourceTitle "playchess.com"]
[Source "ChessBase"]
[SourceQuality "1"]
[TimeControl "40/5400+30:1800+30"]

1. e4 {[%emt 0:00:16]} c5 {[%emt 0:00:04]} 2. Nf3 {[%emt 0:00:13]} d6 {[%emt 0:00:05]} 3. d4 {[%emt 0:00:12]} cxd4 {[%emt 0:00:02]} 4. Nxd4 {[%emt 0:00:10]} Nf6 {[%emt 0:00:04]} 5. Nc3 {[%emt 0:00:10]} a6 {[%emt 0:00:03]} 6. f3 {[%emt 0:01:03]} e5 {[%emt 0:00:07]} 7. Nb3 {[%emt 0:00:09]} Be7 {[%emt 0:00:38]} 8. Be3 {[%emt 0:00:13]} Be6 {[%emt 0:00:06]} 9. Qd2 {[%emt 0:00:07]} h5 {[%emt 0:00:13]} 10. Nd5 {[%emt 0:07:56]} Nxd5 {[%emt 0:00:11]} 11. exd5 {[%emt 0:00:05]} Bf5 {[%emt 0:00:08]} 12. Na5 {[%emt 0:12:07]} b6 {[%emt 0:06:36]} 13. Nc4 {[%emt 0:01:50]} Nd7 {[%emt 0:05:22]} 14. Bd3 {[%emt 0:03:08]} Bxd3 {[%emt 0:02:20]} 15. Qxd3 {[%emt 0:04:28]} Rc8 {[%emt 0:03:47]} 16. Nd2 {[%emt 0:03:04]} O-O {[%emt 0:04:47]} 17. O-O {[%emt 0:00:21]} f5 {[%emt 0:03:21]} 18. Rac1 {[%emt 0:03:14]} b5 {[%emt 0:07:44]} 19. a4 {[%emt 0:02:26]} Bg5 {[%emt 0:01:36]} 20. Bxg5 {[%emt 0:10:58]} Qxg5 {[%emt 0:00:55]} 21. axb5 {[%emt 0:00:11]} Nc5 {[%emt 0:04:19]} 22. Qe2 {[%emt 0:01:24]} axb5 {[%emt 0:01:03]} 23. f4 {[%emt 0:20:27]} exf4 {[%emt 0:09:09]} 24. b4 {[%emt 0:02:52]} Rce8 {[%emt 0:03:42]} 25. Qxb5 {[%emt 0:02:56]} Ne4 {[%emt 0:03:10]} 26. Nf3 {[%emt 0:04:24]} Qf6 {[%emt 0:01:12]} 27. Qd3 {[%emt 0:02:42]} Nc3 {[%emt 0:06:02]} 28. Rce1 {[%emt 0:00:26]} Re4 {[%emt 0:03:49]} 29. Nd2 {[%emt 0:05:43]} Qd4+ {[%emt 0:02:50]} 30. Qxd4 {[%emt 0:04:06]} Rxd4 {[%emt 0:00:31]} 31. Nb3 {[%emt 0:02:04]} Rxb4 {[%emt 0:00:37]} 32. Nc1 {[%emt 0:01:57]} Nxd5 {[%emt 0:01:01]} 33. Nd3 {[%emt 0:00:31]} Re4 {[%emt 0:04:46]} 34. Nf2 {[%emt 0:00:58]} Rxe1 {[%emt 0:11:21]} 35. Rxe1 {[%emt 0:00:01]} Rc8 {[%emt 0:00:37]} 36. Re2 {[%emt 0:02:26]} Kf7 {[%emt 0:03:33]} 37. Rd2 {[%emt 0:00:43]} Ne3 {[%emt 0:02:52]} 38. Nh3 {[%emt 0:00:17]} Rxc2 {[%emt 0:00:41]} 39. Rxc2 {[%emt 0:00:12]} Nxc2 {[%emt 0:00:06]} 40. Nxf4 {[%emt 0:00:00]} g5 {[%emt 0:00:00]} 41. Nxh5 {[%emt 0:15:08]} f4 {[%emt 0:04:51]} 42. h4 {[%emt 0:00:26]} Kg6 {[%emt 0:01:37]} 43. g4 {[%emt 0:00:01]} fxg3 {[%emt 0:02:41]} 44. Nxg3 {[%emt 0:00:14]} gxh4 {[%emt 0:00:11]} 45. Ne2 {[%emt 0:03:38]} Kf5 {[%emt 0:03:32]} 46. Kg2 {[%emt 0:00:37]} Kg4 {[%emt 0:01:51]} 47. Nc3 {[%emt 0:06:35]} Ne3+ {[%emt 0:04:14]} 48. Kh2 {[%emt 0:00:16]} d5 {[%emt 0:00:58]} 49. Ne2 {[%emt 0:01:03]} Nf5 {[%emt 0:00:45]} 50. Nc3 {[%emt 0:00:35]} d4 {[%emt 0:00:45]} 51. Ne4 {[%emt 0:00:14]} Kf4 {[%emt 0:00:31]} 52. Nc5 {[%emt 0:00:20]} Ke3 {[%emt 0:00:18]} 53. Kh3 {[%emt 0:00:45]} d3 {[%emt 0:00:24]} 54. Na4 {[%emt 0:00:03]} d2 {[%emt 0:00:19]} 55. Nc3 {[%emt 0:00:13]} Kd3 {[%emt 0:00:22]} 0-1